fUST/lending_fUST_20240615
["ID","MTS","AMOUNT","RATE_DAILY","PERIOD"]
[329517017,1718411442050,-500.0,0.00016606,2]
[329517018,1718411442090,-322.77097963,0.00016606,2]
[329517019,1718411442120,-500.0,0.00016606,2]
[329517020,1718411442170,-500.0,0.00016606,2]
[329517021,1718411442257,-500.0,0.00016606,2]
[329517022,1718411442397,-500.0,0.00016606,2]
[329517023,1718411442418,-500.0,0.00016606,2]
[329517024,1718411442441,-500.0,0.00016606,2]
[329517025,1718411442486,-509.91,0.00016606,2]
[329517026,1718411442501,-563.51631747,0.00016606,2]
[329517027,1718411442513,-1317.47,0.00016606,2]
[329517028,1718411442523,-500.0,0.00016606,2]
[329517029,1718411442548,-500.0,0.00016606,2]
[329517030,1718411442559,-949.65,0.00016606,2]
[329517031,1718411442569,-500.0,0.00016606,2]
[329517032,1718411442581,-1088.59,0.00016606,2]
[329517033,1718411442594,-1015.21,0.00016606,2]
[329517034,1718411442633,-552.14,0.00016606,2]
[329517035,1718411442646,-982.96,0.00016606,2]
[329517036,1718411442660,-500.0,0.00016606,2]
[329517037,1718411442675,-2346.24,0.00016606,2]
[329517038,1718411442714,-500.0,0.00016606,2]
[329517039,1718411442731,-2087.63605105,0.00016606,2]
[329517044,1718411443191,-1402.44394895,0.00016606,2]
[329517045,1718411443228,-500.0,0.00016606,2]
[329517047,1718411443241,-500.0,0.00016606,2]
[329517048,1718411443256,-500.0,0.00016606,2]
[329517050,1718411443293,-5787.93,0.00016606,2]
[329517052,1718411443336,-500.0,0.00016877,2]
[329517053,1718411443363,-2006.16,0.00016877,2]
[329517054,1718411443390,-500.0,0.00016877,2]
[329517056,1718411443418,-500.0,0.00016878,2]
[329517058,1718411443450,-500.0,0.00016878,2]
[329517061,1718411443468,-500.0,0.00016878,2]
[329517064,1718411443502,-500.0,0.00016878,2]
[329517066,1718411443532,-500.0,0.00016878,2]
[329517069,1718411443569,-500.0,0.00016878,2]
[329517071,1718411443607,-500.0,0.00016878,2]
[329517074,1718411443711,-500.0,0.00016878,2]
[329517075,1718411443727,-500.0,0.00016878,2]
[329517077,1718411443751,-500.0,0.00016878,2]
[329517078,1718411443762,-500.0,0.00016878,2]
[329517081,1718411443831,-500.0,0.00016878,2]
[329517083,1718411443889,-500.0,0.00016878,2]
[329517084,1718411443901,-410.13959465,0.00016878,2]
[329517086,1718411443929,-89.86040535,0.00016878,2]
[329517087,1718411443959,-909.13435461,0.00016878,2]
[329517257,1718411447939,-418.58602612,0.00016606,2]
[329517370,1718411450558,-823.28671994,0.00016506,2]
[329517372,1718411450571,-81.41397388,0.00016606,2]
[329517374,1718411450597,-639.82,0.00016877,2]
[329517376,1718411450609,-71.32564539,0.00016878,2]
[329517378,1718411450621,-500.0,0.00016878,2]
[329517380,1718411450650,-4267.45,0.00016878,2]
[329517383,1718411450736,-500.0,0.00016878,2]
[329517385,1718411450780,-500.0,0.00016878,2]
[329517387,1718411450812,-992.56,0.00016878,2]
[329517388,1718411450828,-1319.87,0.00016878,2]
[329517391,1718411450850,-500.0,0.00016879,2]
[329517392,1718411450881,-500.0,0.00016879,2]
[329517394,1718411450938,-500.0,0.00016879,2]
[329517396,1718411450961,-528.94905643,0.00016879,2]
[329517398,1718411450973,-446.48349725,0.00016879,2]
[329517400,1718411451009,-500.0,0.00016879,2]
[329517402,1718411451023,-500.0,0.00016879,2]
[329517404,1718411451038,-500.0,0.00016879,2]
[329517406,1718411451067,-642.25321705,0.00016879,2]
[329517410,1718411451110,-500.0,0.00016879,2]
[329517411,1718411451136,-500.0,0.00016879,2]
[329517413,1718411451148,-500.0,0.00016879,2]
[329517415,1718411451159,-512.96315971,0.00016879,2]
[329517417,1718411451171,-500.0,0.00016879,2]
[329517419,1718411451183,-500.0,0.00016879,2]
[329517421,1718411451195,-500.0,0.00016879,2]
[329517423,1718411451220,-500.0,0.00016879,2]
[329517425,1718411451232,-500.0,0.00016879,2]
[329517427,1718411451243,-500.0,0.00016879,2]
[329517429,1718411451254,-500.0,0.00016879,2]
[329517431,1718411451269,-641.56348286,0.00016879,2]
[329517434,1718411451320,-500.0,0.00016879,2]
[329517436,1718411451350,-500.0,0.00016879,2]
[329517439,1718411451362,-500.0,0.00016879,2]
[329517441,1718411451410,-96.62592348,0.00016879,2]
[329517479,1718411452341,-323.32160538,0.00016879,2]
[329517481,1718411452362,-273.66114091,0.00016879,2]
[329517483,1718411452431,-226.33885909,0.00016879,2]
[329517485,1718411452442,-78.17408989,0.00016879,2]
[329517488,1718411452466,-421.82591011,0.00016879,2]
[329517489,1718411452480,-78.53858607,0.00016879,2]
[329518261,1718412642277,-1555.1808667,0.00016432,2]
[329518263,1718412642300,-612.1837974,0.00016774,2]
[329518265,1718412642312,-326.51043978,0.00016871,7]
[329518269,1718412642341,-238.58491264,0.00016871,7]
[329518271,1718412642356,-300.0,0.00016871,2]
[329518272,1718412642366,-500.0,0.00016872,2]
[329518275,1718412642377,-3047.52,0.00016872,2]
[329518277,1718412642390,-500.0,0.00016872,2]
[329518278,1718412642417,-233.64500591,0.00016872,2]
[329518279,1718412642430,-266.35499409,0.00016872,2]
[329518280,1718412642440,-6069.70009042,0.00016873,2]
[329518281,1718412642467,-468.12640148,0.00016873,2]
[329518282,1718412642483,-5320.89892293,0.00016873,2]
[329518323,1718412650601,-917.40304382,0.00016873,2]
[329518324,1718412650664,-22697.75996059,0.00016873,2]
[329518325,1718412650675,-500.0,0.00016873,2]
[329518326,1718412650688,-500.0,0.00016873,2]
[329518327,1718412650720,-500.0,0.00016873,2]
[329518328,1718412650736,-500.0,0.00016873,2]
[329518329,1718412650761,-500.0,0.00016873,2]
[329518330,1718412650788,-500.0,0.00016873,2]
[329518331,1718412650854,-500.0,0.00016873,2]
[329518332,1718412650867,-500.0,0.00016873,2]
[329518333,1718412650948,-500.0,0.00016873,2]
[329518334,1718412650964,-1007.03,0.00016873,2]
[329518335,1718412651012,-500.0,0.00016873,2]
[329518336,1718412651029,-500.0,0.00016873,2]
[329518337,1718412651041,-500.0,0.00016873,2]
[329518338,1718412651067,-500.0,0.00016873,2]
[329518339,1718412651109,-500.0,0.00016873,2]
[329518340,1718412651138,-500.0,0.00016873,2]
[329518341,1718412651158,-2277.48,0.00016873,2]
[329518342,1718412651169,-529.74,0.00016873,2]
[329518343,1718412651181,-250.45,0.00016873,2]
[329518344,1718412651203,-500.0,0.00016873,2]
[329518345,1718412651215,-500.0,0.00016873,2]
[329518346,1718412651238,-500.0,0.00016873,2]
[329518347,1718412651253,-1049.81,0.00016873,2]
[329518348,1718412651266,-500.0,0.00016873,2]
[329518349,1718412651281,-500.0,0.00016873,2]
[329518350,1718412651310,-643.13870491,0.00016873,2]
[329518351,1718412651321,-1328.87,0.00016873,2]
[329518352,1718412651340,-500.0,0.00016873,2]
[329518353,1718412651376,-2739.8899986,0.00016874,13]
[329518354,1718412651401,-1447.29651176,0.00016874,2]
[329518355,1718412651412,-500.0,0.00016874,2]
[329518356,1718412651441,-500.0,0.00016874,2]
[329518357,1718412651481,-500.0,0.00016874,2]
[329518358,1718412651513,-500.0,0.00016874,2]
[329518359,1718412651526,-500.0,0.00016874,2]
[329518360,1718412651552,-500.0,0.00016874,2]
[329518361,1718412651588,-500.0,0.00016874,2]
[329518362,1718412651599,-500.0,0.00016874,2]
[329518363,1718412651621,-500.0,0.00016874,2]
[329518364,1718412651681,-500.0,0.00016874,2]
[329518365,1718412651708,-500.0,0.00016874,2]
[329518366,1718412651720,-399.08780266,0.00016874,2]
[329518367,1718412651747,-500.0,0.00016874,2]
[329518368,1718412651762,-500.0,0.00016874,2]
[329518369,1718412651777,-500.0,0.00016874,2]
[329518370,1718412651792,-500.0,0.00016874,2]
[329518371,1718412651813,-500.0,0.00016874,2]
[329518372,1718412651831,-500.0,0.00016874,2]
[329518373,1718412651852,-595.16700674,0.00016874,2]
[329518374,1718412651868,-500.0,0.00016874,2]
[329518375,1718412651888,-500.0,0.00016874,2]
[329518376,1718412651899,-500.0,0.00016874,2]
[329518377,1718412651925,-500.0,0.00016874,2]
[329518378,1718412651944,-500.0,0.00016874,2]
[329518379,1718412651956,-500.0,0.00016874,2]
[329518380,1718412651985,-500.0,0.00016874,2]
[329518381,1718412652016,-500.0,0.00016874,2]
[329518382,1718412652040,-500.0,0.00016874,2]
[329518383,1718412652059,-500.0,0.00016874,2]
[329518384,1718412652093,-542.55906541,0.00016874,2]
[329518385,1718412652116,-500.0,0.00016874,2]
[329518386,1718412652127,-500.0,0.00016874,2]
[329518387,1718412652144,-187.33321578,0.00016874,2]
[329518388,1718412652265,-500.0,0.00016873,2]
[329518389,1718412652312,-312.66678422,0.00016874,2]
[329518390,1718412652328,-951.74,0.00016874,2]
[329518391,1718412652342,-500.0,0.00016874,2]
[329518392,1718412652362,-796.35,0.00016874,2]
[329518393,1718412652378,-500.0,0.00016874,2]
[329518394,1718412652402,-500.0,0.00016874,2]
[329518395,1718412652422,-1022.72,0.00016874,2]
[329518396,1718412652444,-500.0,0.00016874,2]
[329518397,1718412652454,-500.0,0.00016874,2]
[329518398,1718412652466,-404.42716658,0.00016874,2]
[329518399,1718412652492,-977.7,0.00016874,2]
[329518400,1718412652504,-2335.24,0.00016874,2]
[329518401,1718412652517,-500.0,0.00016874,2]
[329518402,1718412652541,-500.0,0.00016874,2]
[329518403,1718412652552,-500.0,0.00016874,2]
[329518404,1718412652565,-500.0,0.00016874,2]
[329518405,1718412652588,-500.0,0.00016874,2]
[329518406,1718412652599,-500.0,0.00016874,2]
[329518407,1718412652629,-500.0,0.00016874,2]
[329518408,1718412652641,-500.0,0.00016874,2]
[329518409,1718412652651,-500.0,0.00016874,2]
[329518410,1718412652663,-500.0,0.00016874,2]
[329518411,1718412652673,-5761.81,0.00016874,2]
[329518412,1718412652709,-500.0,0.00016874,2]
[329518413,1718412652735,-500.0,0.00016874,2]
[329518414,1718412652756,-500.0,0.00016874,2]
[329518415,1718412652775,-500.45785559,0.00016874,2]
[329518416,1718412652786,-500.0,0.00016874,2]
[329518417,1718412652799,-500.0,0.00016874,2]
[329518418,1718412652824,-181.09651382,0.00016874,2]
[329518419,1718412652844,-3250.24348618,0.00016874,2]
[329518420,1718412652856,-500.0,0.00016874,2]
[329518421,1718412652876,-500.0,0.00016874,2]
[329518422,1718412652901,-500.0,0.00016875,2]
[329518423,1718412652912,-500.0,0.00016876,2]
[329518424,1718412652926,-500.0,0.00016876,2]
[329518425,1718412652940,-500.0,0.00016876,2]
[329518426,1718412652957,-500.0,0.00016876,2]
[329518427,1718412652967,-523.13951068,0.00016876,2]
[329518428,1718412652979,-78.227499,0.00016876,2]
[329521334,1718413026822,10000.0,0.00025,60]
[329521434,1718413835779,-489.74703792,0.00016772,2]
[329521435,1718413835797,-190.643407,0.0001687,2]
[329521436,1718413835813,-109.356593,0.0001687,2]
[329521437,1718413835825,-325.0728007,0.00016871,2]
[329521438,1718413835838,-174.9271993,0.00016871,2]
[329521439,1718413835858,-500.0,0.00016871,2]
[329521441,1718413835871,-500.0,0.00016871,2]
[329521443,1718413835887,-500.0,0.00016871,2]
[329521445,1718413835904,-500.0,0.00016871,2]
[329521447,1718413835933,-500.0,0.00016871,2]
[329521449,1718413835947,-500.0,0.00016871,2]
[329521451,1718413835959,-442.10336578,0.00016871,2]
[329521706,1718413841453,-720.37587993,0.00016771,2]
[329521708,1718413841471,-98.91645948,0.00016871,2]
[329521710,1718413841484,-500.0,0.00016871,2]
[329521713,1718413841511,-500.0,0.00016871,2]
[329521714,1718413841522,-500.0,0.00016871,2]
[329521717,1718413841544,-129.74957258,0.00016871,2]
[329521719,1718413841561,-370.25042742,0.00016871,2]
[329521721,1718413841578,-348.96485763,0.00016871,2]
[329521723,1718413841592,-515.99,0.00016871,2]
[329521724,1718413841604,-500.0,0.00016871,2]
[329521726,1718413841617,-500.0,0.00016871,2]
[329521727,1718413841653,-424.38599609,0.00016871,2]
[329521729,1718413841665,-500.0,0.00016871,2]
[329521731,1718413841683,-500.0,0.00016871,2]
[329521733,1718413841716,-500.0,0.00016871,2]
[329521736,1718413841740,-60.02608556,0.00016871,2]
[329521737,1718413841763,-258.75359852,0.00016871,2]
[329521740,1718413841803,-181.22031592,0.00016871,2]
[329521742,1718413841821,-500.0,0.00016871,2]
[329521744,1718413841854,-500.0,0.00016871,2]
[329521746,1718413841867,-267.36757546,0.00016871,2]
[329521748,1718413841880,-500.0,0.00016871,2]
[329521750,1718413841896,-500.0,0.00016871,2]
[329521752,1718413841909,-500.0,0.00016871,2]
[329521755,1718413841926,-936.96,0.00016871,2]
[329521757,1718413841940,-500.0,0.00016871,2]
[329521759,1718413841964,-965.07,0.00016871,2]
[329521762,1718413841995,-500.0,0.00016871,2]
[329521764,1718413842007,-1958.19,0.00016871,2]
[329521766,1718413842018,-500.0,0.00016871,2]
[329521768,1718413842031,-290.37787744,0.00016871,2]
[329521770,1718413842046,-500.0,0.00016871,2]
[329521772,1718413842072,-500.0,0.00016871,2]
[329521774,1718413842084,-518.01494891,0.00016871,2]
[329521776,1718413842098,-500.0,0.00016871,2]
[329521777,1718413842111,-500.0,0.00016871,2]
[329521780,1718413842124,-500.0,0.00016871,2]
[329521782,1718413842137,-500.0,0.00016871,2]
[329521784,1718413842152,-500.0,0.00016871,2]
[329521786,1718413842162,-1105.09586058,0.00016871,2]
[329522204,1718413850222,-257.82305983,0.00016871,2]
[329522766,1718413872597,10000.0,0.00014,2]
[329522768,1718414349811,1810.0,0.00025,120]
[329522912,1718415047047,-646.86609079,0.00016208,2]
[329522913,1718415047104,-391.79763032,0.0001677,2]
[329522915,1718415047117,-630.32889493,0.0001677,2]
[329522917,1718415047129,-300.0,0.00016868,2]
[329522919,1718415047144,-500.0,0.00016869,2]
[329522921,1718415047158,-500.0,0.00016869,2]
[329522922,1718415047196,-500.0,0.00016869,2]
[329522923,1718415047224,-500.0,0.00016869,2]
[329522926,1718415047242,-500.0,0.00016869,2]
[329522927,1718415047260,-932.81293838,0.00016869,2]
[329522986,1718415048513,-1178.78100576,0.00016869,2]
[329523184,1718415062324,2379.28561335,0.00022357,30]
[329523190,1718416049374,1692.50562042,0.00025,60]
[329523194,1718416148072,10000.0,0.00023,30]
[329523195,1718416158641,10000.0,0.00023,30]
[329523203,1718416169021,10000.0,0.00025,60]
[329523204,1718416178164,10000.0,0.00025,60]
[329523205,1718416197930,9329.0,0.00025,60]
[329523234,1718416235463,-5014.53586536,0.00016615,2]
[329523235,1718416235477,-553.5850958,0.00016768,2]
[329523236,1718416235490,-317.6280166,0.00016769,2]
[329523237,1718416235502,-300.0,0.00016867,2]
[329523238,1718416235514,-1578.96792288,0.00016868,13]
[329523239,1718416235538,-503.13700646,0.00016868,2]
[329523240,1718416235567,-515.8459825,0.00016868,2]
[329523241,1718416235578,-500.0,0.00016868,2]
[329523242,1718416235589,-505.50351452,0.00016868,2]
[329523243,1718416235602,-519.0,0.00016868,2]
[329523244,1718416235615,-510.83759067,0.00016868,2]
[329523245,1718416235628,-511.46726008,0.00016868,2]
[329523246,1718416235644,-500.0,0.00016868,2]
[329523247,1718416235658,-500.0,0.00016868,2]
[329523248,1718416235696,-519.28174539,0.00016868,2]
[329523249,1718416235710,-500.0,0.00016868,2]
[329523250,1718416235728,-914.09,0.00016868,2]
[329523251,1718416235741,-928.54,0.00016868,2]
[329523252,1718416235758,-505.34239645,0.00016868,2]
[329523253,1718416235769,-510.12736144,0.00016868,2]
[329523254,1718416235785,-504.32760403,0.00016868,2]
[329523255,1718416235796,-500.0,0.00016868,2]
[329523256,1718416235830,-500.0,0.00016868,2]
[329523257,1718416235841,-508.49135693,0.00016868,2]
[329523258,1718416235852,-500.0,0.00016868,2]
[329523259,1718416235885,-1243.91,0.00016868,2]
[329523260,1718416235936,-538.4160401,0.00016868,2]
[329523261,1718416235951,-514.60232199,0.00016868,2]
[329523262,1718416235966,-736.29,0.00016868,2]
[329523263,1718416235988,-501.59733605,0.00016868,2]
[329523264,1718416236005,-503.47601432,0.00016868,2]
[329523265,1718416236017,-502.18007917,0.00016868,2]
[329523266,1718416236035,-521.52219432,0.00016868,2]
[329523267,1718416236047,-561.90352339,0.00016868,2]
[329523268,1718416236060,-900.32,0.00016868,2]
[329523269,1718416236071,-500.0,0.00016868,2]
[329523270,1718416236085,-502.37499987,0.00016868,2]
[329523271,1718416236125,-2161.56,0.00016868,2]
[329523272,1718416236181,-155.845738,0.00016868,2]
[329523273,1718416236206,-505.45053425,0.00016868,2]
[329523274,1718416236236,-504.57897541,0.00016868,2]
[329523275,1718416236260,-505.05078919,0.00016868,2]
[329523276,1718416236276,-502.93608604,0.00016868,2]
[329523277,1718416236292,-986.164591,0.00016868,2]
[329523322,1718416501885,70599.0,0.00025,60]
[329523331,1718416586137,174.22,0.00025,60]
[329523340,1718417202604,3318.86,0.00025,60]
[329523343,1718417307969,239.25,0.00025,60]
[329523347,1718417433134,1107.69609106,0.00025,60]
[329523428,1718417447927,-1571.4965162,0.00015842,2]
[329523431,1718417447952,-174.8631788,0.00016164,2]
[329523433,1718417447967,-624.14802103,0.00016167,2]
[329523435,1718417447992,-1178.55147973,0.00016767,2]
[329523437,1718417448004,-155.98292115,0.00016865,2]
[329523439,1718417448018,-300.0,0.00016865,2]
[329523440,1718417448038,-155.13162932,0.00016866,2]
[329523442,1718417448057,-2450.22592374,0.00016866,2]
[329523551,1718417450012,-622.55407626,0.00016866,2]
[329523553,1718417450028,-500.0,0.00016866,2]
[329523555,1718417450056,-500.0,0.00016866,2]
[329523557,1718417450067,-517.80495975,0.00016866,2]
[329523560,1718417450081,-500.0,0.00016866,2]
[329523562,1718417450094,-151.0,0.00016867,2]
[329523563,1718417450105,-151.747455,0.00016867,2]
[329523565,1718417450137,-500.0,0.00016867,2]
[329523567,1718417450168,-500.0,0.00016867,2]
[329523570,1718417450220,-506.0997575,0.00016867,2]
[329523572,1718417450235,-263.15559156,0.00016867,2]
[329523573,1718417450250,-500.0,0.00016867,2]
[329523575,1718417450271,-500.0,0.00016867,2]
[329523578,1718417450288,-508.69323256,0.00016867,2]
[329523580,1718417450299,-504.29204801,0.00016867,2]
[329523582,1718417450321,-500.0,0.00016867,2]
[329523584,1718417450343,-500.0,0.00016867,2]
[329523586,1718417450381,-503.72844188,0.00016867,2]
[329523589,1718417450411,-501.82580155,0.00016867,2]
[329523592,1718417450456,-506.4878325,0.00016867,2]
[329523594,1718417450475,-401.33518593,0.00016867,2]
[329523596,1718417450486,-500.0,0.00016867,2]
[329523597,1718417450498,-500.0,0.00016867,2]
[329523598,1718417450509,-152.811442,0.00016867,2]
[329523600,1718417450521,-504.91473045,0.00016867,2]
[329523601,1718417450532,-511.3881571,0.00016867,2]
[329523603,1718417450544,-508.64648512,0.00016867,2]
[329523606,1718417450561,-503.87400018,0.00016867,2]
[329523607,1718417450575,-503.44369707,0.00016867,2]
[329523609,1718417450591,-505.49958641,0.00016867,2]
[329523611,1718417450607,-509.15082667,0.00016867,2]
[329523613,1718417450626,-500.0,0.00016867,2]
[329523616,1718417450654,-322.95456357,0.00016867,2]
[329523618,1718417450699,-500.0,0.00016867,2]
[329523620,1718417450752,-502.73214974,0.00016867,2]
[329523622,1718417450774,-500.0,0.00016867,2]
[329523625,1718417450792,-506.33981284,0.00016867,2]
[329523627,1718417450807,-501.6982004,0.00016867,2]
[329523629,1718417450844,-3299.14,0.00016867,2]
[329523631,1718417450863,-450.16783664,0.00016867,2]
[329523633,1718417450901,-500.0,0.00016867,2]
[329523634,1718417450918,-500.0,0.00016867,2]
[329523635,1718417450933,-500.0,0.00016867,2]
[329523638,1718417450961,-500.0,0.00016867,2]
[329523640,1718417450982,-526.1530785,0.00016867,2]
[329523642,1718417451023,-889.85,0.00016867,2]
[329523643,1718417451043,-500.0,0.00016867,2]
[329523645,1718417451058,-876.0,0.00016867,2]
[329523647,1718417451072,-500.0,0.00016867,2]
[329523649,1718417451084,-500.0,0.00016867,2]
[329523651,1718417451097,-508.25954087,0.00016867,2]
[329523655,1718417451169,-509.58330505,0.00016867,2]
[329523657,1718417451196,-276.29360503,0.00016867,2]
[329523662,1718417451293,-226.66291952,0.00016867,2]
[329523664,1718417451311,-1192.09,0.00016867,2]
[329523665,1718417451338,-503.05418277,0.00016867,2]
[329523667,1718417451349,-500.0,0.00016867,2]
[329523669,1718417451372,-832.16,0.00016867,2]
[329523671,1718417451385,-165.143239,0.00016867,2]
[329523673,1718417451397,-500.0,0.00016867,2]
[329523675,1718417451418,-505.20741704,0.00016867,2]
[329523677,1718417451433,-181.44381365,0.00016867,2]
[329523851,1718417454334,180.43869601,9.9e-05,2]
[329527027,1718417512954,164.60963917,9.999e-05,2]
[329530132,1718418634983,-190.34147522,0.00015741,2]
[329530134,1718418634996,-84.82027135,0.00016747,2]
[329530433,1718418641480,-858.02091245,0.00016747,2]
[329530435,1718418641491,-942.84118376,0.00016752,2]
[329530437,1718418641512,-942.84118376,0.00016757,2]
[329530440,1718418641553,-942.84118376,0.00016761,2]
[329530442,1718418641569,-166.36737217,0.00016766,2]
[329530445,1718418641613,-776.47381159,0.00016766,2]
[329530447,1718418641645,-300.0,0.00016845,2]
[329530449,1718418641661,-500.0,0.00016846,2]
[329530451,1718418641672,-899.01,0.00016846,2]
[329530452,1718418641682,-193.22355353,0.00016846,2]
[329530454,1718418641706,-319.70532208,0.00016846,2]
[329530457,1718418641729,-572.14,0.00016846,2]
[329530458,1718418641742,-530.04828137,0.00016846,2]
[329530464,1718418641784,-505.2382655,0.00016846,2]
[329530468,1718418641816,-515.08080944,0.00016846,2]
[329530471,1718418641833,-523.3505082,0.00016846,2]
[329530473,1718418641853,-513.95001448,0.00016846,2]
[329530475,1718418641864,-502.39596046,0.00016846,2]
[329530477,1718418641913,-507.30068523,0.00016846,2]
[329530479,1718418641932,-4189.45,0.00016846,2]
[329530481,1718418641945,-505.47757576,0.00016846,2]
[329530483,1718418641963,-1007.68,0.00016846,2]
[329530485,1718418642005,-500.0,0.00016846,2]
[329530487,1718418642016,-539.96,0.00016846,2]
[329530489,1718418642047,-500.0,0.00016846,2]
[329530490,1718418642059,-1276.44,0.00016846,2]
[329530493,1718418642076,-1597.75,0.00016846,2]
[329530495,1718418642104,-503.92490252,0.00016846,2]
[329530497,1718418642141,-511.11369412,0.00016846,2]
[329530499,1718418642175,-151.0,0.00016846,2]
[329530502,1718418642193,-511.42779306,0.00016846,2]
[329530503,1718418642239,-500.0,0.00016846,2]
[329530505,1718418642263,-505.09474122,0.00016846,2]
[329530507,1718418642283,-500.0,0.00016846,2]
[329530510,1718418642336,-500.0,0.00016846,2]
[329530512,1718418642349,-151.0,0.00016846,2]
[329530514,1718418642428,-233.502177,0.00016846,2]
[329530515,1718418642440,-277.35401735,0.00016846,2]
[329530516,1718418642457,-504.31557667,0.00016846,2]
[329530518,1718418642490,-520.89544148,0.00016846,2]
[329530520,1718418642526,-506.41266908,0.00016846,2]
[329530522,1718418642538,-512.00091702,0.00016846,2]
[329530524,1718418642554,-508.33119402,0.00016846,2]
[329530526,1718418642567,-630.23372001,0.00016846,2]
[329530528,1718418642584,-868.54,0.00016846,2]
[329530530,1718418642617,-151.0,0.00016846,2]
[329530532,1718418642651,-209.0,0.00016846,2]
[329530534,1718418642667,-504.26956103,0.00016846,2]
[329530536,1718418642690,-514.94318312,0.00016846,2]
[329530538,1718418642733,-3242.24249894,0.00016846,13]
[329530540,1718418642758,-36822.5625502,0.00016847,2]
[329530542,1718418642785,-164.86312088,0.00016863,2]
[329530544,1718418642804,-500.0,0.00016864,2]
[329530547,1718418642824,-505.62332252,0.00016864,2]
[329530549,1718418642834,-503.79634341,0.00016864,2]
[329530551,1718418642864,-500.0,0.00016864,2]
[329530553,1718418642876,-507.99977133,0.00016864,2]
[329530555,1718418642891,-510.27730097,0.00016864,2]
[329530557,1718418642906,-503.98341405,0.00016864,2]
[329530559,1718418642919,-500.0,0.00016864,2]
[329530560,1718418642932,-500.0,0.00016864,2]
[329530562,1718418642949,-501.49355344,0.00016864,2]
[329530564,1718418642967,-511.25296102,0.00016864,2]
[329530566,1718418642983,-539.21762061,0.00016864,2]
[329530568,1718418643000,-519.73101468,0.00016864,2]
[329530570,1718418643019,-509.26833286,0.00016864,2]
[329530575,1718418643054,-505.05442923,0.00016864,2]
[329530578,1718418643069,-500.0,0.00016864,2]
[329530580,1718418643092,-511.10818397,0.00016864,2]
[329530582,1718418643110,-512.17436529,0.00016864,2]
[329530584,1718418643128,-504.8183563,0.00016864,2]
[329530586,1718418643148,-515.80270649,0.00016864,2]
[329530588,1718418643164,-502.88000095,0.00016864,2]
[329530591,1718418643197,-531.81387818,0.00016864,2]
[329530593,1718418643212,-505.39792539,0.00016864,2]
[329530595,1718418643238,-168.88892883,0.00016864,2]
[329530598,1718418643262,-438.33236228,0.00016864,2]
[329530600,1718418643276,-526.37063192,0.00016864,2]
[329530603,1718418643296,-503.3479807,0.00016864,2]
[329530608,1718418643331,-506.46632054,0.00016864,2]
[329530611,1718418643342,-500.0,0.00016864,2]
[329530614,1718418643355,-504.53637545,0.00016864,2]
[329530616,1718418643367,-511.47782528,0.00016864,2]
[329530618,1718418643378,-500.0,0.00016864,2]
[329530619,1718418643391,-500.0,0.00016864,2]
[329530621,1718418643410,-504.16625957,0.00016864,2]
[329530622,1718418643433,-505.57072531,0.00016864,2]
[329530625,1718418643446,-511.03967052,0.00016864,2]
[329530627,1718418643464,-500.0,0.00016864,2]
[329530629,1718418643479,-508.1315626,0.00016864,2]
[329530631,1718418643511,-503.45,0.00016864,2]
[329530633,1718418643528,-512.13018741,0.00016864,2]
[329530635,1718418643539,-509.88602348,0.00016864,2]
[329530636,1718418643565,-502.79958507,0.00016864,2]
[329530637,1718418643576,-505.09438397,0.00016864,2]